Cogmind - Beta 13 *** ADVENTURER MODE // 2024.06.02 @ 21:07:12 Player: bruhman420 Result: Destroyed by D-53 Grenadier with Mini Grenade Launcher Performance ------------- Evolutions (0) 0 Regions Visited (2) 400 Robots Destroyed (10) 50 Value Destroyed (298) 298 Prototype IDs (0) 0 Alien Tech Used (0) 0 Bonus (0) 0 TOTAL SCORE: 748 Bonus ------- None Cogmind --------- Core Integrity 0/250 Matter 267/300 Energy 100/100 System Corruption 0% Temperature Cool (84) Movement Core (500) Ox9 Location -10/Mines Parts ------- > --- POWER (1) -------- (None) > --- PROPULSION (2) --- (None) > --- UTILITY (2) ------ Small Storage Unit Large Storage Unit > --- WEAPON (2) ------- Small Laser Rocket Launcher > --- INVENTORY (15) --- Ion Engine Light Ion Engine Light Treads Light Treads Aluminum Leg Flight Unit Flight Unit Large Storage Unit Particle Gun Particle Gun Grenade Launcher Peak State ------------ > --- POWER ------------ Light Nuclear Core > --- PROPULSION ------- Compact Wheel Compact Wheel > --- UTILITY ---------- Small Storage Unit Large Storage Unit > --- WEAPON ----------- Small Laser Small Laser > --- INVENTORY -------- Ion Engine Ion Engine Light Ion Engine Light Treads Light Treads Aluminum Leg Flight Unit Flight Unit Large Storage Unit Large Battery Particle Gun Particle Gun Grenade Launcher [Rating: 10] Favorites ----------- Power Ion Engine Engine Ion Engine Power Core Light Nuclear Core Propulsion Compact Wheel Wheel Compact Wheel Utility Small Storage Unit Storage Small Storage Unit Weapon Small Laser Energy Gun Small Laser Ballistic Gun Assault Rifle Launcher Rocket Launcher Build | -11 -10 -10 ------- Run | Yrd Mat Min Slots Evolved . | . . . Power . | . . . Propulsion . | . . . Utility . | . . . Weapon . | . . . Parts Attached 13 | 6 3 4 Power 2 | 1 . 1 Engine 1 | 1 . . Core 1 | . . 1 Reactor . | . . . Propulsion 3 | 2 1 . Treads . | . . . Leg . | . . . Wheel 3 | 2 1 . Hover . | . . . Flight . | . . . Utility 3 | 1 2 . Device . | . . . Storage 3 | 1 2 . Processor . | . . . Hackware . | . . . Protection . | . . . Artifact . | . . . Weapon 5 | 2 . 3 Energy Gun 3 | 1 . 2 Energy Cannon . | . . . Ballistic Gun 1 | 1 . . Ballistic Cannon . | . . . Launcher 1 | . . 1 Special Weapon . | . . . Impact Weapon . | . . . Slashing Weapon . | . . . Piercing Weapon . | . . . Special Melee Weapon . | . . . Unidentified Prototypes . | . . . Parts Lost 6 | . . 6 Power 1 | . . 1 Propulsion 2 | . . 2 Utility . | . . . Weapon 3 | . . 3 Highest Loss Streak 4 | . . 4 To Critical Strikes . | . . . Average Slot Usage (%) 98 | . 99 98 Engine 9 | . 14 1 Core 4 | . . 12 Wheel 27 | . 27 26 Storage 27 | . 27 28 Energy Gun 18 | . 14 26 Ballistic Gun 8 | . 14 . Naked Turns . | . . . Heaviest Build 33 | 13 33 32 Greatest Support 32 | 32 32 32 Greatest Overweight (x) 2 | . 2 . Average Overweight (x) . | . . . Largest Inventory Capacity 15 | 8 15 15 Average Capacity 14 | 6 14 15 Most Carried 15 | 5 15 14 Average Carried 11 | 3 12 12 Final Capacity 15 | 8 15 15 Final Carried 14 | 4 14 11 Class Distribution -------------------- 100% | Mutant Dominant Class ---------------- Mutant | -10/Materials Mutant | -10/Mines Resources | -11 -10 -10 ----------- Run | Yrd Mat Min Matter Collected 452 | 191 209 52 Remotely . | . . . Salvage Created 372 | . 228 144 Parts 22 | . 18 4 Haulers Intercepted . | . . . Recyclers Shooed . | . . . Parts Field Recycled . | . . . Retrieved Matter . | . . . Parts Self-Destructed . | . . . Prevented . | . . . Kills | -11 -10 -10 ------- Run | Yrd Mat Min Combat Hostiles Destroyed 9 | . 7 2 Guns 8 | . 7 1 AOE 1 | . . 1 Classes Destroyed 4 | . 2 2 Recycler 1 | . . 1 Swarmer 3 | . 3 . Grunt 5 | . 4 1 Demolisher 1 | . . 1 Best Kill Streak 3 | . 3 2 Combat Bots Only 3 | . 3 1 Max Kills in Single Turn 1 | . 1 1 Gunslinging . | . . . Exploded 1 | . . 1 Melee . | . . . Uniques/NPCs Destroyed . | . . . Combat | -11 -10 -10 -------- Run | Yrd Mat Min Hostile Shots Fired 79 | . 43 36 Missed 22 | . 15 7 Damage Taken 855 | . 281 574 Core 276 | . 81 195 Absorbed by Shields . | . . . Ignored by Resistances 244 | . 83 161 Regen/Repaired (Parts) 2 | . 2 . Core Remaining (%) 100 | 100 . . Volleys Fired 35 | . 21 14 Largest 2 | . 2 2 Hottest 80 | . 60 80 Shots Fired 69 | . 42 27 Gun 66 | . 42 24 Cannon . | . . . Launcher 3 | . . 3 Special . | . . . Kinetic 25 | . 21 4 Thermal 41 | . 21 20 Explosive 3 | . . 3 Electromagnetic . | . . . Robot Hit Streak 34 | . 33 34 Robot Miss Streak 2 | . 1 2 Penetration Max . | . . . Secondary Targets 2 | . 2 . Max Gunslinging Chain 1 | . 1 . Shots Hit Robots 60 | . 36 24 Core Hits 24 | . 14 10 Critical Kills . | . . . Critical Parts Destroyed . | . . . Critical Strikes . | . . . Melee Attacks . | . . . Impact . | . . . Slashing . | . . . Piercing . | . . . Sneak Attacks . | . . . Combat Hostiles . | . . . Follow-up Attacks . | . . . Damage Inflicted 750 | . 420 330 Guns 651 | . 420 231 Cannons . | . . . Explosions 99 | . . 99 Melee . | . . . Ramming . | . . . Kinetic 254 | . 219 35 Thermal 397 | . 201 196 Explosive 99 | . . 99 Electromagnetic . | . . . Impact . | . . . Slashing . | . . . Piercing . | . . . Highest Corruption . | . . . Average Corruption . | . . . Corruption Purged . | . . . Corruption Blocked . | . . . Overload Shots . | . . . Overflow Damage . | . . . Projectiles . | . . . Explosions . | . . . Melee . | . . . Knockbacks . | . . . Impact . | . . . Kinetic . | . . . Secondary . | . . . Self-Inflicted Damage 32 | . . 32 Shots 2 | . . 2 Rammed . | . . . Targets Rammed . | . . . Kicked . | . . . Crushed . | . . . Highest Temperature 148 | . 88 148 Average Temperature 51 | . 42 61 Received Heat Transfer 339 | . 201 138 Siege Activations . | . . . Robots Corrupted . | . . . Combat Hostiles . | . . . Parts Fried . | . . . Impact Corruptions . | . . . Robots Melted . | . . . Combat Hostiles . | . . . Parts Melted 1 | . . 1 Heat Transferred 925 | . 475 450 Parts Sabotaged . | . . . Parts Stolen . | . . . Parts Stripped . | . . . Power Chain Reactions . | . . . Alert | -11 -10 -10 ------- Run | Yrd Mat Min Peak Influence 170 | . 170 40 Initial . | . . . Average 53 | . 78 26 Maximum Alert Level . | . . . Low Security (%) 100 | 100 100 100 Level 1 . | . . . Level 2 . | . . . Level 3 . | . . . Level 4 . | . . . Level 5 . | . . . High Security . | . . . Max Security . | . . . Squads Dispatched . | . . . Investigation . | . . . Extermination . | . . . Reinforcement . | . . . Assault . | . . . Garrison . | . . . Intercept . | . . . Searches Triggered . | . . . Construction Impeded . | . . . Haulers Reinforced . | . . . Active Scanning Responses . | . . . Cargo Convoy Interrupts . | . . . Stealth | -11 -10 -10 --------- Run | Yrd Mat Min Distress Signals . | . . . Communications Jammed . | . . . Distress Signals . | . . . Times Spotted 14 | . 7 7 Peak Tracking Total 14 | . 3 14 Tactical Retreats 1 | . . 1 Traps | -11 -10 -10 ------- Run | Yrd Mat Min Traps Triggered . | . . . Indirectly . | . . . Trap Hack Attempts . | . . . Triggered . | . . . Disarmed . | . . . Reprogrammed . | . . . Reused . | . . . Traps Extracted . | . . . Installed . | . . . Triggered . | . . . Machines | -11 -10 -10 ---------- Run | Yrd Mat Min Machines Disabled . | . . . Max in Single Turn . | . . . Machines Repaired . | . . . Machines Dismantled . | . . . Machines Sabotaged . | . . . Overloaded Fab Kills . | . . . Hacking | -11 -10 -10 --------- Run | Yrd Mat Min Machines Accessed 2 | . 2 . Terminals 1 | . 1 . Fabricators . | . . . Repair Stations 1 | . 1 . Recycling Units . | . . . Scanalyzers . | . . . Garrison Access . | . . . Total Hacks 4 | . 4 . Successful 3 | . 3 . Failed 1 | . 1 . Catastrophic . | . . . Database Lockouts . | . . . Manual 1 | . 1 . Terminals 2 | . 2 . Fabricators . | . . . Repair Stations 2 | . 2 . Recycling Units . | . . . Scanalyzers . | . . . Garrison Access . | . . . Terminal Hacks 1 | . 1 . Alert Level 1 | . 1 . Fabricator Hacks . | . . . Repair Station Hacks 2 | . 2 . Scan Component 1 | . 1 . Repair 1 | . 1 . Recycling Unit Hacks . | . . . Scanalyzer . | . . . Garrison Access Hacks . | . . . Unauthorized Hacks . | . . . Terminals . | . . . Fabricators . | . . . Repair Stations . | . . . Recycling Units . | . . . Scanalyzers . | . . . Garrison Access . | . . . Data Cores Recovered . | . . . Used . | . . . Hacking Detections 1 | . 1 . Full Trace Events . | . . . Feedback Events . | . . . Feedback Blocked . | . . . Robot Schematics Acquired . | . . . Robots Built . | . . . Authchips . | . . . Time . | . . . Total Robot Build Rating . | . . . Part Schematics Acquired . | . . . Parts Built . | . . . Authchips . | . . . Time . | . . . Total Part Build Rating . | . . . Parts Repaired 1 | . 1 . Time 26 | . 26 . Parts Recycled . | . . . Recycled Matter . | . . . Retrieved Matter . | . . . Retrieved Components . | . . . Parts Scanalyzed . | . . . Part Schematics Acquired . | . . . Parts Damaged . | . . . Bothacking | -11 -10 -10 ------------ Run | Yrd Mat Min Used RIF Installer . | . . . Robots Hacked . | . . . Non-combat . | . . . Combat . | . . . Robot Hacks Applied . | . . . Relay Couplers Released . | . . . Fabnet Peak Effective % . | . . . Robots Rewired . | . . . Allies Hacked . | . . . Hacks Repelled . | . . . Allies | -11 -10 -10 -------- Run | Yrd Mat Min Total Allies . | . . . Largest Group . | . . . Highest-Rated Group . | . . . Highest-Rated Ally . | . . . Total Orders . | . . . Ally Attacks . | . . . Total Damage . | . . . Kills . | . . . Allies Corrupted . | . . . Allies Melted . | . . . Intel | -11 -10 -10 ------- Run | Yrd Mat Min Robot Analysis Total . | . . . Derelict Logs Recovered 1 | . . 1 Drone Launches . | . . . Drone Recoveries . | . . . Exploration | -11 -10 -10 ------------- Run | Yrd Mat Min Turns Passed 839 | 82 474 283 Spaces Moved 652 | 75 343 234 Core 16 | 16 . . Treads . | . . . Legs . | . . . Wheels 636 | 59 343 234 Hover . | . . . Flight . | . . . Fastest Speed 50 | 50 100 100 Average Speed 106 | 89 114 100 Slowest Speed 130 | 100 130 100 Overloaded Moves . | . . . Propulsion Burnouts . | . . . Robots Hopped . | . . . Cave-ins Triggered . | . . . Exploration Rate (%) 25 | 5 31 39 Regions Visited 2 Branch Regions 1 Pre-discovered Areas . | . . . Known Exits Taken . | . . . Unknown Exits Taken 2 | 1 1 . Scrap Searched . | . . . Spaces Dug . | . . . Terrain Destroyed 32 | . . 32 Melee . | . . . Projectile . | . . . AOE 32 | . . 32 Terrain Rammed . | . . . Walls Destroyed . | . . . Machines Disabled . | . . . Actions | -11 -10 -10 --------- Run | Yrd Mat Min Total 730 | 90 384 256 Wait . | . . . Move 650 | 74 342 234 Hop . | . . . Pick Up 27 | 10 15 2 Fast Attach . | . . . Attach 11 | 6 2 3 Detach . | . . . Swap 2 | . 1 1 Drop 5 | . 3 2 Fire 35 | . 21 14 Melee . | . . . Ram . | . . . Kick . | . . . Crush . | . . . Escape Stasis . | . . . Rewire . | . . . Trap . | . . . Miscellaneous . | . . . Route ------- -11/Scrapyard -10/Materials -10/Mines (discovered 1 exit: [*Mat]) History --------- Turn | Location | Event 13 | -11/Scrapyard | Discovered new exit (range 16) 83 | -11/Scrapyard | Entered Materials 211 | -10/Materials | Repaired Flight Unit 315 | -10/Materials | Build established: Mutant 383 | -10/Materials | Discovered new exit (range 6) 557 | -10/Materials | Entered Mines 610 | -10/Mines | Discovered new exit (range 14) 646 | -10/Mines | Received a Rocket Launcher from a helpful Derelict 672 | -10/Mines | Learned Materials trap positions 810 | -10/Mines | Assembled infested the area 815 | -10/Mines | Assisted by a Guerilla fighting off Assembled 834 | -10/Mines | Core integrity fell below 50% 839 | -10/Mines | Core integrity fell below 20% 840 | -10/Mines | Destroyed by D-53 Grenadier with Mini Grenade Launcher Last Messages --------------- JA-XZ1(h) system corrupted by crushing effect. JA-XZ1(h) system terminally corrupted. C-30 ARC bursts open, deploying its payload. D-53 Grenadier unfolds itself. U-05 Engineer lays Concrete. U-05 Engineer builds a Wall. U-05 Engineer destroyed. Com. Wheel destroyed. as-68139 destroyed. Sml. Laser destroyed. The unstable cave ceiling collapses. R-06 Scavenger destroyed. Com. Wheel destroyed. as-54143 destroyed. The unstable cave ceiling collapses. U-05 Engineer lays Concrete. D-53 Grenadier destroyed. U-05 Engineer builds a Wall. The unstable cave ceiling collapses. Lgt. Nuclear Core destroyed. Map ----- +----------------------------------------------------+ | ?????????????????????????????????????????????????? | | ?????????????????????????????????????????????????? | | ?????????????????????????????????????????????????? | | ?????????????????????????????????????????????????? | | ?????????????????????????????????????????????????? | | ???????????????????????##????????????????????????? | | ??????????????????????? ????????????????????????? | | ???????????????????????# ????????????????????????? | | ???????????????????????# ????????????????????????? | | ???????????????????????# ####????????????????????? | | ??????????????????????## ###??????????????????? | | ?????????????????????## ##?????????????????? | | ????????????????????##t #?????????????????? | | ????????????????????# #######???????????? | | ???????????????????## ## #???????????? | | ???????????????????# #???????#???? | | ???????????????????# ## #?????? #???? | | ??????????????????## k############## #???? | | ??????????????????# #??????# #???? | | ??????????????????# #?????# #???? | | ??????????????????# r #????? ????? | | ??????????????????## ##???? ??????? | | ???????????????????## ##### #????????? | | ????????????????????# ## #?????????? | | ?????????????###???## #?????????? | | ????????????? #???# @ #?????????? | | ?????????????# #???# # =% #?????????? | | ?############# #### # # "#????????? | | ?# # d ## ?????? | | ?# # ### !%* ??? | | ?# % % ##?# ######?? | | ?# % #??## #??????? | | ?####### ##### ### ####?## ## ##??????? | | ???????# #???# #?### #### ##?#####? ##???????? | | ???????# #???# #####u### #???????? #????????? | | ???????# #???# !! ##??????? ????????? | | ???????# #???######### ## [ ####?????# ???????? | | ???????# #???????????# ## ###???? #??????? | | ??????## ########?#### ## ##????#??????? | | ?????## ### ### [% #???????????? | | ???### ## #???????????? | | ??## ## ##???????????? | | ??# # ### #????????????? | | ??# ### < ## #?# #????????????? | | ??## ##?## ### #### #?# #????????????? | | ???# ##?## ##?####??# #?## ##????????????? | | ???## ### ##????##### #######?????????????? | | ????## ## ##?????# #???????????????? | | ?????## ### #??????# #???????????????? | | ??????#### #?????# #???????????????? | +----------------------------------------------------+ Best States ------------- Heat Dissipation 25 Energy Generation 14 Energy Capacity 250 Matter Stores 300 Matter Capacity 300 Sight Range 16 Terrain Scan Density 10 Resistance: KI 20 Resistance: TH 20 Resistance: EX 20 Resistance: EM 20 Resistance: I 20 Resistance: S 20 Resistance: P 20 Evasion (%) 40 Offensive Hacking 10 Item Schematics ----------------- None Robot Schematics ------------------ None Fabricated ------------ Nothing Alien Tech Used ----------------- None Achievements -------------- None Challenges ------------ None Game ------ Seed FlakOpticalHammer Manual? 0 Play Time 00:08:21 Cumulative 1.1 hours Start 2024.06.02 @ 20:58:55 End 2024.06.02 @ 21:07:12 Sessions 1 Manual Loads 0 Difficulty Adventurer Special Mode None Game No. 4 Rogue 0 Adventurer 2 Explorer 2 Win Type - Total 0 Types 0/0/0/0/0/0/0/0/0 Lore% 2 Gallery% 6 Achievement% 5 Wizard Run 0 Options --------- Layout 1 ASCII 0 Keyboard 0 Movement Arrows Keybinds 0 Fullscreen 1 Font 24/Smallcaps Map View 50x35 Zoom Use 0% Tactical HUD 0 Map Filters NONE Filters NONE Steam 1 RUN: 238db2ae-c3b3-4e4e-94ba-2e68227da7c6